bitfinex/quotes_SOLUSD_20251031
["timestamp","ask_amount","ask_price","bid_price","bid_amount"]
[1761904171207,4.6988387,187.15,187.14,1.98079483]
[1761904171406,4.6988387,187.15,187.13,82.06247475]
[1761904171602,0.72,187.14,187.13,63.84161424]
[1761904171788,4.6983782,187.14,187.13,61.7]
[1761904175505,4.6983782,187.14,187.11,25.93643004]
[1761904175709,0.72,187.13,187.11,29.02458428]
[1761904176786,0.72,187.13,187.12,3.08815424]
[1761904179312,0.72,187.15,187.12,8.43231841]
[1761904179508,4.69931104,187.14,187.13,3.08815424]
[1761904179720,0.72,187.17,187.13,3.08815424]
[1761904179892,3.97897445,187.16,187.13,64.78815424]
[1761904180089,3.97897445,187.15,187.13,64.78815424]
[1761904180305,0.72,187.17,187.13,70.1319907]
[1761904180493,3.97966112,187.16,187.13,70.1319907]
[1761904180808,3.97966112,187.15,187.13,70.1319907]
[1761904181112,0.72,187.16,187.13,70.1319907]
[1761904181326,3.97966173,187.15,187.13,70.1319907]
[1761904181489,3.97966173,187.14,187.13,70.1319907]
[1761904182121,3.97966173,187.14,187.13,64.78815424]
[1761904182420,4.69966173,187.14,187.13,64.78815424]
[1761904182901,4.69966173,187.14,187.13,61.7]
[1761904183994,4.69966173,187.14,187.11,67.04441315]
[1761904184318,4.69966173,187.13,187.11,67.04441315]
[1761904184616,0.72,187.13,187.11,67.04441315]
[1761904185006,0.72,187.13,187.11,70.13256739]
[1761904185724,0.72,187.15,187.11,70.13256739]
[1761904186016,3.98477125,187.14,187.11,70.13256739]
[1761904186218,3.98477125,187.13,187.11,70.13256739]
[1761904186422,3.98477125,187.12,187.11,70.13256739]
[1761904187094,4.70477125,187.12,187.11,70.13256739]
[1761904187496,3.98477125,187.12,187.11,70.13256739]
[1761904187707,3.98477125,187.12,187.11,80.06355665]
[1761904188014,3.98477125,187.12,187.11,85.40607352]
[1761904188917,0.72,187.19,187.12,9.78882769]
[1761904189217,4.71142273,187.18,187.14,3.08815424]
[1761904189521,3.99142273,187.17,187.14,3.08815424]
[1761904189701,3.99142273,187.16,187.14,8.43172064]
[1761904189903,3.99142273,187.15,187.14,8.43172064]
[1761904190115,3.99142273,187.15,187.14,70.13172064]
[1761904190799,4.71142273,187.15,187.14,61.7]
[1761904191602,7.79957697,187.15,187.13,61.7]
[1761904191813,4.71142273,187.14,187.1,69.49957697]
[1761904192140,3.99142273,187.13,187.1,69.49957697]
[1761904192293,3.99142273,187.12,187.1,69.49957697]
[1761904192498,12.01941568,187.16,187.11,5.34444097]
[1761904192700,0.72,187.13,187.1,69.49957697]
[1761904193003,3.99664477,187.12,187.1,64.78815424]
[1761904193310,3.99664477,187.11,187.1,61.7]
[1761904195027,3.99664477,187.11,187.1,67.04473543]
[1761904196948,3.99664477,187.11,187.1,61.7]
[1761904198126,3.99664477,187.11,187.1,79.92171736]
[1761904198329,3.99664477,187.11,187.1,86.59793719]
[1761904200429,4.00327206,187.11,187.1,86.59793719]
[1761904200633,4.00327206,187.11,187.1,83.50978295]
[1761904202331,4.00327206,187.11,187.1,86.59793719]
[1761904203718,4.67327206,187.11,187.1,68.37621983]
[1761904203915,4.67327206,187.11,187.1,61.7]
[1761904205758,16.71431188,187.11,187.08,61.7]
[1761904205921,11.3698621,187.1,187.08,61.7]
[1761904206128,7.61170786,187.09,187.08,61.7]
[1761904206347,8.28170786,187.09,187.08,61.7]
[1761904208241,16.71488321,187.09,187.08,61.7]
[1761904208422,16.71488321,187.09,187.07,71.64303096]
[1761904208619,11.3698621,187.08,187.07,71.64303096]
[1761904208818,16.71516892,187.08,187.07,71.64303096]
[1761904209129,16.71516892,187.08,187.07,7.62303096]
[1761904209954,16.71516892,187.08,186.97,0.69]
[1761904209955,20.592,187.05,186.97,0.69]
[1761904210260,3.08815424,187.01,186.97,0.69]
[1761904210453,7.0914263,187.0,186.96,0.69]
[1761904210624,4.00327206,186.99,186.96,0.69]
[1761904210947,3.6084358,187.04,186.96,0.69]
[1761904210948,4.00327206,186.98,186.96,0.69]
[1761904211145,4.00327206,186.97,186.96,0.69]
[1761904211456,4.57327206,187.07,186.97,9.78882769]
[1761904211748,3.99453985,187.06,187.04,3.08815424]
[1761904212067,3.99453985,187.05,187.04,3.08815424]
[1761904212356,3.99453985,187.05,187.04,0.69]
[1761904212556,3.99453985,187.05,187.04,3.77815424]
[1761904213459,3.99453985,187.05,187.04,9.12460419]
[1761904215242,3.99453985,187.05,187.04,70.82460419]
[1761904215642,3.99453985,187.05,187.04,67.73644995]
[1761904215843,3.99453985,187.05,187.04,65.47815424]
[1761904216336,3.99453985,187.05,187.04,61.7]
[1761904227258,3.99453985,187.05,187.04,62.39]
[1761904227772,3.99453985,187.05,187.04,65.47815424]
[1761904227961,3.99453985,187.05,187.04,70.82460419]
[1761904228666,3.99453985,187.05,187.04,80.61343188]
[1761904231057,3.98749668,187.05,187.04,80.61343188]
[1761904231365,5.91422228,187.12,187.05,9.78882769]
[1761904231568,3.98728202,187.11,187.06,0.67]
[1761904231792,3.98728202,187.1,187.06,0.67]
[1761904232078,3.98728202,187.09,187.08,1.97788447]
[1761904232277,3.98728202,187.09,187.08,63.67788447]
[1761904232481,3.98728202,187.09,187.08,64.34788447]
[1761904234655,3.98728202,187.09,187.08,69.69319129]
[1761904236977,2.54788447,187.14,187.08,69.69319129]
[1761904237184,3.99026671,187.13,187.09,0.67]
[1761904237485,3.99026671,187.12,187.09,0.67]
[1761904237791,3.99026671,187.11,187.09,0.67]
[1761904238089,3.99026671,187.1,187.09,0.67]
[1761904238386,3.99026671,187.1,187.09,6.01502111]
[1761904239786,3.99026671,187.1,187.09,67.71502111]
[1761904240978,3.99026671,187.1,187.09,69.69290558]
[1761904242491,3.99026671,187.1,187.09,61.7]
[1761904242706,6.53815118,187.1,187.09,61.7]
[1761904242911,11.88288661,187.1,187.09,61.7]
[1761904243687,9.90500214,187.1,187.09,61.7]
[1761904243905,11.88288661,187.1,187.09,61.7]
[1761904244091,9.90500214,187.1,187.09,61.7]
[1761904244296,11.88288661,187.1,187.09,61.7]
[1761904244593,11.88288661,187.1,187.07,9.94303096]
[1761904244891,6.53815118,187.09,187.07,9.94303096]
[1761904245082,5.96815118,187.08,187.07,9.94303096]
[1761904245284,6.53815118,187.08,187.07,9.94303096]
[1761904245594,5.96815118,187.08,187.07,9.94303096]
[1761904246203,3.99026671,187.08,187.07,9.94303096]
[1761904247007,6.53815118,187.08,187.07,9.94303096]
[1761904247183,11.883458,187.08,187.07,9.94303096]
[1761904247578,15.47401773,187.08,187.07,9.94303096]
[1761904247774,11.883458,187.08,187.07,9.94303096]
[1761904247998,15.47401773,187.08,187.07,9.94303096]
[1761904248205,11.883458,187.08,187.07,9.94303096]
[1761904248415,15.47401773,187.08,187.07,9.94303096]
[1761904249086,15.47401773,187.08,187.07,9.46166651]
[1761904253108,15.47401773,187.08,187.07,2.76661604]
[1761904253310,24.93568424,187.08,187.07,2.76661604]
[1761904257982,24.36568424,187.08,187.07,2.76661604]
[1761904258187,14.90401773,187.08,187.07,2.76661604]
[1761904258587,13.49613326,187.08,187.07,2.76661604]
[1761904258890,15.47401773,187.08,187.07,2.76661604]
[1761904259487,20.82159006,187.08,187.07,2.76661604]
[1761904260487,15.47401773,187.08,187.07,2.76661604]
[1761904261107,14.90401773,187.08,187.07,2.76661604]
[1761904261305,14.90401773,187.08,187.07,3.48661604]
[1761904261619,7.58082644,187.08,187.07,3.48661604]
[1761904262203,12.92613326,187.08,187.07,3.48661604]
[1761904263136,14.90401773,187.08,187.07,2.76661604]
[1761904263296,20.592,187.05,187.01,0.72]
[1761904263616,20.592,187.01,186.94,0.72]
[1761904263816,1.97788447,186.97,186.94,0.72]
[1761904264008,3.99866894,186.96,186.94,0.72]
[1761904264318,3.99866894,186.95,186.94,0.72]
[1761904266618,3.99866894,186.95,186.94,2.69788447]
[1761904266797,3.99866894,186.95,186.94,0.72]
[1761904267398,1.97788447,186.98,186.94,6.06922955]
[1761904267722,3.99066214,186.97,186.94,8.04711402]
[1761904267897,3.99066214,186.96,186.95,0.72]
[1761904269104,6.53854661,186.96,186.91,0.72]
[1761904269410,4.56066214,186.95,186.89,20.592]
[1761904269598,1.97788447,186.91,186.9,20.592]
[1761904269799,20.592,186.89,186.88,0.2]
[1761904270013,26.56054661,186.89,186.88,0.2]
[1761904270220,3.99066214,186.89,186.88,0.92]
[1761904270524,3.99066214,186.89,186.88,6.27102739]
[1761904270700,20.592,186.93,186.88,8.24891186]
[1761904270898,3.98489561,186.92,186.89,0.72]
[1761904271097,1.97788447,186.94,186.89,0.72]
[1761904271311,3.98489478,186.93,186.89,0.72]
[1761904271516,3.98489478,186.92,186.89,0.72]
[1761904271722,1.97788447,186.94,186.89,0.72]
[1761904271919,3.98260262,186.93,186.89,0.72]
[1761904272216,1.97788447,186.94,186.89,0.72]
[1761904272418,3.98055234,186.93,186.89,0.72]
[1761904272608,7.32691946,186.95,186.89,8.04862004]
[1761904272808,3.98055276,186.94,186.9,1.97788447]
[1761904273007,3.98055276,186.93,186.9,2.69788447]
[1761904273214,7.32691946,186.95,186.9,1.97788447]
[1761904273408,3.97874113,186.94,186.91,0.72]
[1761904273623,7.32691946,186.95,186.91,0.72]
[1761904273924,3.9784718,186.94,186.91,0.72]
[1761904274417,3.9784718,186.93,186.91,0.72]
[1761904275938,5.34939969,186.94,186.91,0.72]
[1761904276093,1.97788447,186.98,186.93,1.97788447]
[1761904276293,3.97471243,186.97,186.93,1.97788447]
[1761904276513,3.97471243,186.97,186.93,2.69788447]
[1761904276726,3.97471243,186.97,186.94,0.72]
[1761904276933,20.592,186.96,186.94,0.72]
[1761904281241,5.34730763,187.01,186.98,1.97788447]
[1761904281437,3.97424196,187.0,186.98,1.97788447]
[1761904281736,3.97424196,186.99,186.98,1.97788447]
[1761904281939,3.97424196,186.99,186.98,2.68788447]
[1761904283826,3.97424196,186.99,186.98,0.71]
[1761904284019,3.97424196,186.99,186.98,2.68788447]
[1761904284226,20.592,187.02,186.98,2.68788447]
[1761904284531,3.97810361,187.01,186.99,0.71]
[1761904284741,3.97810361,187.0,186.99,0.71]
[1761904289341,3.97810361,187.0,186.99,8.03576403]
[1761904289538,3.97810361,187.0,186.99,79.52459172]
[1761904289733,8.93174835,187.07,186.99,62.41]
[1761904289734,1.97788447,187.04,186.99,62.41]
[1761904289939,1.97788447,187.04,187.0,0.71]
[1761904289940,3.98539271,187.03,187.0,0.71]
[1761904290147,3.98539271,187.02,187.0,64.38788447]
[1761904290349,3.98539271,187.01,187.0,62.41]
[1761904291555,3.98539271,187.01,187.0,61.7]
[1761904291977,3.98539271,187.01,187.0,62.41]
[1761904292559,3.98539271,187.01,187.0,61.7]
[1761904293672,12.42583405,187.01,186.98,61.7]
[1761904293857,3.98539271,187.0,186.98,61.7]
[1761904294058,3.98539271,186.99,186.98,62.41]
[1761904294459,3.98539271,186.99,186.98,61.7]
[1761904295153,7.07852642,186.99,186.95,61.7]
[1761904295354,3.09313371,186.97,186.94,0.71]
[1761904295663,3.98539271,186.96,186.94,0.71]
[1761904295973,3.98539271,186.95,186.94,0.71]
[1761904296144,3.98539271,186.95,186.94,62.41]
[1761904297589,3.98539271,186.95,186.94,0.71]
[1761904301453,3.98539271,186.95,186.94,62.41]
[1761904308285,3.98539271,186.95,186.94,70.85244364]
[1761904314672,3.98539271,186.95,186.94,62.41]
[1761904315082,3.98539271,186.95,186.94,61.7]
[1761904315083,7.07852642,186.95,186.94,61.7]
[1761904315496,10.6703597,186.95,186.94,61.7]
[1761904316889,7.57722599,186.95,186.94,61.7]
[1761904317085,10.6703597,186.95,186.94,61.7]
[1761904317289,10.6703597,186.95,186.9,61.7]
[1761904317290,16.5893835,186.95,186.9,61.7]
[1761904317492,3.09313371,186.93,186.9,62.41]
[1761904317667,3.98539271,186.92,186.9,62.41]
[1761904317996,3.98539271,186.91,186.9,62.41]
[1761904322692,7.07852642,186.91,186.88,61.9]
[1761904322882,13.37337231,186.94,186.89,0.72]
[1761904322883,3.98539271,186.9,186.89,0.72]
[1761904323269,3.98539271,186.9,186.88,0.2]
[1761904323489,3.98539271,186.89,186.88,0.92]
[1761904325281,3.98539271,186.89,186.88,19.15298879]
[1761904326380,3.60295189,186.94,186.89,15.13935995]
[1761904326584,4.00092515,186.93,186.9,3.09313371]
[1761904326878,4.00092515,186.92,186.9,3.81313371]
[1761904327094,4.00092515,186.91,186.9,3.09313371]
[1761904327797,4.00092515,186.91,186.9,65.51313371]
[1761904328497,4.00092515,186.91,186.9,70.86358849]
[1761904329498,4.00092515,186.91,186.9,62.42]
[1761904329676,4.00092515,186.91,186.9,61.7]
[1761904330078,7.66405886,186.91,186.9,61.7]
[1761904330507,13.01422739,186.91,186.9,61.7]
[1761904331103,12.44422739,186.91,186.9,61.7]
[1761904333593,12.44422739,186.91,186.88,0.2]
[1761904333594,12.44422739,186.91,186.88,61.9]
[1761904333786,4.00092515,186.9,186.88,62.62]
[1761904333982,4.00092515,186.89,186.88,62.62]
[1761904335292,4.00092515,186.89,186.88,61.9]
[1761904336201,4.00092515,186.89,186.88,62.62]
[1761904336402,13.01479993,186.89,186.88,61.9]
[1761904336702,12.44479993,186.89,186.88,61.9]
[1761904336879,16.04775182,186.89,186.88,61.9]
[1761904337084,16.61775182,186.89,186.88,0.2]
[1761904337404,13.01479993,186.89,186.88,0.2]
[1761904337802,16.61775182,186.89,186.88,0.2]
[1761904338008,13.01479993,186.89,186.88,0.2]
[1761904338400,16.61775182,186.89,186.88,0.2]
[1761904338911,16.61823274,186.89,186.88,0.2]
[1761904340995,20.99016736,186.89,186.88,0.2]
[1761904342319,16.61823274,186.89,186.88,0.2]
[1761904343719,18.76386771,186.89,186.88,0.2]
[1761904344210,18.19386771,186.89,186.88,0.2]
[1761904344514,16.61823274,186.89,186.88,0.2]
[1761904347919,20.592,186.86,186.82,61.302]
[1761904348135,3.09313371,186.84,186.8,72.01082769]
[1761904348288,4.00140607,186.83,186.8,72.01082769]
[1761904348592,4.00140607,186.82,186.8,75.1039614]
[1761904348792,3.09313371,186.85,186.8,75.1039614]
[1761904349022,3.99274297,186.84,186.81,0.69]
[1761904349197,3.99274297,186.83,186.81,0.69]
[1761904349399,3.99274297,186.82,186.81,10.47882769]
[1761904349618,3.99222196,186.82,186.81,10.47882769]
[1761904350000,3.99222196,186.82,186.8,0.2]
[1761904350200,3.99222196,186.81,186.8,0.2]
[1761904351317,7.08535567,186.81,186.8,0.2]
[1761904351832,3.99222196,186.81,186.8,0.2]
[1761904360121,3.99222196,186.81,186.8,0.89]
[1761904361640,3.99222196,186.81,186.8,10.67882769]
[1761904362341,3.99222196,186.81,186.8,16.03214674]
[1761904362723,3.99222196,186.81,186.8,10.67882769]
[1761904369841,3.99512252,186.81,186.8,10.67882769]
[1761904371726,3.99512252,186.81,186.8,71.98082769]
[1761904372454,3.99512252,186.81,186.8,62.192]
[1761904372656,11.33244393,186.81,186.8,61.502]
[1761904374549,11.90244393,186.81,186.8,61.502]
[1761904375157,15.49525969,186.81,186.8,61.502]
[1761904375356,11.90244393,186.81,186.8,61.502]
[1761904375653,15.49525969,186.81,186.8,0.2]
[1761904375856,36.08725969,186.81,186.8,0.2]
[1761904377053,20.12782015,186.81,186.8,0.2]
[1761904377269,42.86649146,186.81,186.8,0.2]
[1761904377446,22.27449146,186.81,186.79,0.2]
[1761904377646,30.7342272,186.8,186.79,0.2]
[1761904378050,32.88089851,186.8,186.79,0.2]
[1761904378270,30.32660959,186.8,186.79,0.2]
[1761904378467,30.1642272,186.8,186.79,0.2]
[1761904378769,33.53325733,186.8,186.79,0.2]
[1761904378957,35.51754625,186.8,186.79,0.2]
[1761904380854,28.17993828,186.8,186.79,0.2]
[1761904381053,7.58793828,186.8,186.79,0.86]
[1761904381457,14.92554625,186.8,186.79,0.86]
[1761904381656,14.92554625,186.8,186.79,0.2]
[1761904383675,14.9348098,186.8,186.79,0.2]
[1761904385966,15.5048098,186.8,186.79,0.2]
[1761904386158,14.9348098,186.8,186.79,0.2]
[1761904387859,15.64697137,186.8,186.78,0.2]
[1761904388055,30.74349075,186.79,186.77,0.2]
[1761904388255,14.22896344,186.78,186.77,0.2]
[1761904388461,14.79896344,186.78,186.77,0.2]
[1761904388872,20.15285571,186.78,186.77,0.2]
[1761904389075,19.58285571,186.78,186.77,0.2]
[1761904389274,22.29987269,186.78,186.77,0.2]
[1761904390156,17.79456157,186.78,186.77,0.2]
[1761904390351,22.29987269,186.78,186.77,0.2]
[1761904390570,24.28416161,186.78,186.76,0.2]
[1761904390759,18.230808,186.77,186.75,0.2]
[1761904390957,27.51894441,186.76,186.75,0.2]
[1761904391154,23.58527362,186.76,186.75,0.2]
[1761904391854,0.14216157,186.75,186.74,1e-08]
[1761904392061,20.592,186.72,186.7,0.2]
[1761904392378,30.17349075,186.71,186.7,0.2]
[1761904392750,30.74349075,186.71,186.7,0.2]
[1761904393084,36.09939027,186.71,186.7,0.2]
[1761904395250,35.52939027,186.71,186.7,0.2]
[1761904395478,36.09939027,186.71,186.7,0.2]
[1761904401365,35.52939027,186.71,186.7,0.91]
[1761904401785,31.93657451,186.71,186.7,0.91]
[1761904402183,31.93657451,186.71,186.7,0.2]
[1761904402688,32.50657451,186.71,186.7,0.2]
[1761904402892,31.93657451,186.71,186.7,0.2]
[1761904403897,29.95228559,186.71,186.7,0.2]
[1761904404376,31.93657451,186.71,186.7,0.2]
[1761904405369,31.93657451,186.71,186.7,0.91]
[1761904405786,29.95228559,186.71,186.7,0.91]
[1761904405976,31.93657451,186.71,186.7,0.91]
[1761904406177,24.59638607,186.71,186.7,0.91]
[1761904406379,26.58067499,186.71,186.7,0.91]
[1761904406566,29.95228559,186.71,186.7,0.91]
[1761904406771,31.93657451,186.71,186.7,0.91]
[1761904407285,24.59638607,186.71,186.7,0.91]
[1761904407492,31.93657451,186.71,186.7,0.91]
[1761904407680,4.00438607,186.71,186.7,0.91]
[1761904411181,11.34457451,186.71,186.7,0.2]
[1761904411686,14.93276569,186.71,186.7,0.2]
[1761904412696,15.50276569,186.71,186.7,0.2]
[1761904412900,14.93276569,186.71,186.7,0.2]
[1761904415295,16.62374745,186.71,186.7,0.2]
[1761904416015,16.62374745,186.71,186.69,10.14303096]
[1761904416312,11.26784793,186.7,186.69,10.14303096]
[1761904416607,15.77031806,186.7,186.69,10.14303096]
[1761904416905,11.26784793,186.7,186.69,10.14303096]
[1761904417078,16.62403432,186.7,186.69,10.14303096]
[1761904418288,21.12650445,186.7,186.69,10.14303096]
[1761904418500,16.62403432,186.7,186.69,10.14303096]
[1761904419313,21.12650445,186.7,186.69,10.14303096]
[1761904419491,20.55650445,186.7,186.69,10.14303096]
[1761904419693,21.12650445,186.7,186.69,10.14303096]
[1761904421013,21.12650445,186.7,186.69,7.45927105]
[1761904421991,17.45123377,186.7,186.69,7.45927105]
[1761904423015,12.94876364,186.7,186.69,7.45927105]
[1761904423320,17.45123377,186.7,186.69,7.45927105]
[1761904424116,12.94876364,186.7,186.69,7.45927105]
[1761904424604,38.04323377,186.7,186.69,7.45927105]
[1761904425520,36.64603432,186.7,186.69,7.45927105]
[1761904426320,41.14850445,186.7,186.69,7.45927105]
[1761904428120,53.71177098,186.7,186.66,0.2]
[1761904428321,6.21054136,186.67,186.66,0.2]
[1761904428496,13.80311861,186.67,186.66,0.2]
[1761904430110,19.1601658,186.67,186.66,0.2]
[1761904430798,39.7521658,186.67,186.66,0.2]
[1761904431106,44.07936768,186.67,186.66,0.2]
[1761904431419,36.64689512,186.67,186.66,0.92]
[1761904431640,36.64689512,186.67,186.66,0.2]
[1761904434523,41.14936525,186.67,186.66,0.2]
[1761904435233,41.17076533,186.67,186.66,0.2]
[1761904435426,36.66406456,186.67,186.66,0.2]
[1761904436142,41.17076533,186.67,186.66,0.2]
[1761904436311,33.55879388,186.67,186.66,0.92]
[1761904436503,36.66406456,186.67,186.66,0.92]
[1761904440216,41.17076533,186.67,186.66,0.92]
[1761904440538,36.66406456,186.67,186.66,0.92]
[1761904440735,7.60974669,186.67,186.66,0.92]
[1761904440926,16.07206456,186.67,186.66,0.92]
[1761904441235,16.07206456,186.67,186.66,0.2]
[1761904441642,20.57876533,186.67,186.66,0.2]
[1761904441813,20.57876533,186.67,186.66,0.91]
[1761904443353,20.57876533,186.67,186.66,0.2]
[1761904444421,20.57876533,186.67,186.66,0.91]
[1761904444620,41.17076533,186.67,186.66,0.2]
[1761904445241,41.17076533,186.67,186.66,0.91]
[1761904445446,38.06796981,186.67,186.66,0.91]
[1761904445631,6.17222185,186.67,186.66,10.69882769]
[1761904445956,4.00686123,186.67,186.66,10.69882769]
[1761904446524,4.00686123,186.67,186.66,0.91]
[1761904448254,4.00686123,186.67,186.66,0.2]
[1761904450934,4.00686123,186.67,186.66,61.502]
[1761904452658,13.1891791,186.67,186.66,0.2]
[1761904454257,17.69587987,186.67,186.66,0.2]
[1761904454567,17.69587987,186.67,186.61,0.2]
[1761904454568,34.19376853,186.67,186.61,0.2]
[1761904454734,3.10527068,186.62,186.61,0.2]
[1761904455049,4.00686123,186.62,186.61,0.2]
[1761904455465,7.11213191,186.62,186.61,0.2]
[1761904455755,4.00686123,186.62,186.61,0.2]
[1761904457850,7.61780531,186.62,186.61,0.2]
[1761904458863,4.00686123,186.62,186.61,13.09409837]
[1761904459071,7.61813128,186.62,186.61,18.45286799]
[1761904459638,10.72340196,186.62,186.61,0.2]
[1761904459842,11.44340196,186.62,186.61,0.2]
[1761904460459,16.80188443,186.62,186.61,0.2]
[1761904464260,16.08188443,186.62,186.61,0.2]
[1761904464769,16.08086323,186.62,186.61,0.2]
[1761904464960,16.80086323,186.62,186.61,0.2]
[1761904465749,16.80621321,186.62,186.61,0.2]
[1761904465967,7.62246006,186.62,186.61,0.2]
[1761904466169,7.62257751,186.62,186.61,0.2]
[1761904469064,7.62257751,186.62,186.61,71.29082769]
[1761904469374,7.62257751,186.62,186.61,76.64959731]
[1761904469768,7.62257751,186.62,186.61,71.29082769]
[1761904475680,7.62257751,186.62,186.61,76.64959731]
[1761904479686,7.62257751,186.62,186.61,71.29082769]
[1761904480765,8.28257751,186.62,186.61,71.29082769]
[1761904481172,7.62268897,186.62,186.61,71.29082769]
[1761904482183,8.28268897,186.62,186.61,71.29082769]
[1761904484163,7.62268897,186.62,186.61,71.29082769]
[1761904484390,8.28268897,186.62,186.61,71.29082769]
[1761904484578,10.27052671,186.62,186.61,61.502]
[1761904485392,15.62900918,186.62,186.61,61.502]
[1761904485986,15.62900918,186.62,186.61,0.2]
[1761904489700,10.27052671,186.62,186.61,0.2]
[1761904489987,8.28268897,186.62,186.61,0.2]
[1761904491074,10.27052671,186.62,186.61,0.2]
[1761904491779,8.28268897,186.62,186.61,0.2]
[1761904496407,7.62268897,186.62,186.61,9.98882769]
[1761904496616,7.62268897,186.62,186.61,11.97666543]
[1761904497434,7.63028534,186.62,186.61,17.33543505]
[1761904497716,7.63028534,186.62,186.61,78.63743505]
[1761904500425,4.01232267,186.62,186.61,78.77959662]
[1761904500907,4.01232267,186.62,186.61,86.40988196]
[1761904503444,3.61439024,186.68,186.61,99.80680602]
[1761904503611,7.62857764,186.67,186.66,9.78882769]
[1761904503933,7.62857764,186.67,186.66,71.09082769]
[1761904504113,7.62857764,186.67,186.66,73.07866543]
[1761904504305,4.0141874,186.67,186.66,73.07866543]
[1761904505239,4.0141874,186.67,186.66,78.43599962]
[1761904507324,4.0141874,186.67,186.66,82.45018702]
[1761904507536,4.0141874,186.67,186.66,82.59234859]
[1761904507715,4.0141874,186.67,186.66,83.128082]
[1761904508027,4.0141874,186.67,186.66,91.07943296]
[1761904508204,3.60581393,186.72,186.66,104.61493]
[1761904508527,4.00507632,186.71,186.7,15.57149879]
[1761904508842,3.60403659,186.78,186.74,9.78882769]
[1761904509017,3.60403659,186.77,186.72,9.78882769]
[1761904509332,0.71,186.78,186.72,10.2153124]
[1761904509509,0.71,186.78,186.77,9.78882769]
[1761904511011,0.71,186.81,186.77,15.14300662]
[1761904511208,0.71,186.8,186.77,17.13084436]
[1761904511519,0.71,186.81,186.78,1.98783774]
[1761904512331,0.71,186.81,186.78,7.34163402]
[1761904512537,1.98783774,186.8,186.74,0.14216157]
[1761904512845,1.98783774,186.8,186.75,9.78882769]
[1761904513034,0.71,186.79,186.75,9.78882769]
[1761904513210,2.69783774,186.79,186.74,7.34287683]
[1761904513608,0.71,186.78,186.74,7.34287683]
[1761904514013,0.71,186.78,186.74,5.35503909]
[1761904514215,0.71,186.78,186.74,7.34287683]
[1761904515422,0.71,186.78,186.74,68.64487683]
[1761904516010,2.69783774,186.78,186.75,9.78882769]
[1761904516427,0.71,186.77,186.75,9.78882769]
[1761904516731,0.71,186.77,186.74,66.65703909]
[1761904516732,1.98783774,186.76,186.74,61.302]
[1761904516916,1.98783774,186.75,186.74,61.302]
[1761904517325,2.65783774,186.75,186.74,61.302]
[1761904521634,11.99233058,186.75,186.74,61.302]
[1761904521943,53.92256239,186.75,186.68,9.78882769]
[1761904522126,1.98783774,186.7,186.68,9.78882769]
[1761904522322,0.67,186.74,186.68,71.09082769]
[1761904522526,1.98783774,186.7,186.68,71.09082769]
[1761904522929,0.67,186.69,186.68,71.09082769]
[1761904526341,3.98080799,186.7,186.68,71.09082769]
[1761904526522,4.65080799,186.7,186.68,71.09082769]
[1761904531426,2.68783774,186.69,186.66,61.302]
[1761904531639,1.98783774,186.67,186.66,61.302]
[1761904532041,2.68783774,186.67,186.66,61.302]
[1761904533650,2.68783774,186.67,186.66,61.19485]
[1761904533953,0.7,186.67,186.66,61.19485]
[1761904538232,4.69134169,186.67,186.66,61.19485]
[1761904542152,3.99134169,186.67,186.66,61.19485]
[1761904542347,3.99134169,186.67,186.66,74.08877922]
[1761904542548,4.69134169,186.67,186.66,70.98367769]
[1761904543753,7.79644322,186.67,186.66,61.19485]
[1761904543933,13.15349041,186.67,186.66,61.19485]
[1761904544652,13.15349041,186.67,186.62,9.78882769]
[1761904544844,3.10510153,186.64,186.62,70.98367769]
[1761904545046,3.99134169,186.63,186.62,70.98367769]
[1761904545248,4.69134169,186.63,186.62,70.98367769]
[1761904545560,7.79644322,186.63,186.62,61.19485]
[1761904552534,13.15472559,186.63,186.61,0.2]
[1761904552838,7.79644322,186.62,186.61,0.2]
[1761904555457,3.99134169,186.62,186.61,0.2]
[1761904555841,0.7,186.64,186.61,9.98882769]
[1761904556159,3.98667107,186.63,186.61,9.98882769]
[1761904556353,3.98712745,186.62,186.61,61.39485]
[1761904557140,4.68712745,186.62,186.61,61.39485]
[1761904557343,3.98712745,186.62,186.61,61.39485]